Cogmind - Beta 17 @@@ ROGUE MODE // 2026.08.23 @ 05:01:19 // Winter2019/RPGLIKE Player: Toaster Result: Destroyed by DU-0JT(j) with Overtuned Pulse Rifle Performance ------------- Evolutions (0) 0 Regions Visited (4) 800 Robots Destroyed (45) 225 Value Destroyed (1106) 1106 Prototype IDs (32) 640 Alien Tech Used (0) 0 Bonus (764) 764 TOTAL SCORE: 3535 Bonus ------- Registered with UFD 300 Met Optimus in HQ 500 Friendly Fire -36 Cogmind --------- Core Integrity 0/750 Matter 300/300 Energy 265/275 System Corruption 1% Temperature Cool (12) Movement Rolling (45) Location -8/Scraptown Parts ------- > --- POWER (2) -------- Ion Engine Light Ion Engine > --- PROPULSION (3) --- Wheel Wheel Wheel > --- UTILITY (4) ------ Rocket Booster Microactuators A0-MCA's Component Scanner > --- WEAPON (4) ------- Companion Sword > --- INVENTORY (1) ---- (None) Peak State ------------ > --- POWER ------------ Ion Engine Light Ion Engine > --- PROPULSION ------- Wheel Overtuned Scrapsphere Overtuned Scrapsphere > --- UTILITY ---------- Scrap Suit Microactuators A0-MCA's Component Scanner > --- WEAPON ----------- Companion Sword > --- INVENTORY -------- (None) [Rating: 36] Favorites ----------- Power Ion Engine Engine Ion Engine Propulsion Wheel Wheel Wheel Utility Light Armor Plating Device Microactuators Processor A0-MCA's Component Scanner Protection Light Armor Plating Weapon Medium Laser Energy Gun Medium Laser Energy Cannon Subdweller Beam Cannon Ballistic Gun Subdweller Machine Gun Launcher Grenade Launcher Impact Weapon Great Maul Slashing Weapon Makeshift Sword Build | -11 -10 -10 -8 -8 ------- Run | Yrd Mat Sub Rec Scr Slots Evolved 9 | 3 1 1 3 1 Power 1 | . . . 1 . Propulsion 2 | 1 . . 1 . Utility 3 | 1 . . 1 1 Weapon 3 | 1 1 1 . . Parts Attached 40 | 6 9 6 5 14 Power 3 | 1 1 . 1 . Engine 3 | 1 1 . 1 . Core . | . . . . . Reactor . | . . . . . Propulsion 8 | 3 . . 1 4 Treads . | . . . . . Leg . | . . . . . Wheel 8 | 3 . . 1 4 Hover . | . . . . . Flight . | . . . . . Utility 12 | . 4 . 1 7 Device 7 | . 2 . . 5 Storage . | . . . . . Processor 2 | . . . . 2 Hackware . | . . . . . Protection 3 | . 2 . 1 . Artifact . | . . . . . Weapon 17 | 2 4 6 2 3 Energy Gun 5 | 2 2 1 . . Energy Cannon 1 | . . 1 . . Ballistic Gun 4 | . . 4 . . Ballistic Cannon . | . . . . . Launcher 2 | . 2 . . . Special Weapon . | . . . . . Impact Weapon 1 | . . . 1 . Slashing Weapon 4 | . . . 1 3 Piercing Weapon . | . . . . . Special Melee Weapon . | . . . . . Unidentified Prototypes . | . . . . . Parts Lost . | . . . . . Power . | . . . . . Propulsion . | . . . . . Utility . | . . . . . Weapon . | . . . . . Highest Loss Streak . | . . . . . To Critical Strikes . | . . . . . Average Backups . | . . . 1 . Power . | . . . . . Propulsion . | . . . . . Utility . | . . . . . Weapon . | . . . 1 . Tool/Special . | . . . . . Unused Backups 1 | . 1 . . . Power . | . . . . . Propulsion . | . . . . . Utility . | . . . . . Weapon 1 | . 1 . . . Tool/Special . | . . . . . Average Slot Usage (%) 90 | . 96 99 92 80 Engine 12 | . 12 11 10 15 Wheel 23 | . 25 24 20 23 Device 7 | . 6 . . 15 Processor 2 | . . . . 6 Protection 13 | . 15 24 20 2 Energy Gun 10 | . 25 10 9 . Energy Cannon 2 | . . 2 9 . Ballistic Gun 7 | . . 17 17 . Launcher 3 | . 10 7 . . Impact Weapon 1 | . . . . 3 Slashing Weapon 4 | . . . 2 10 Peak Build Rating 36 | 5 8 14 21 36 Average Rating 17 | 3 7 10 14 29 On Entrance 9 | . 5 8 14 21 Avg Prop Armor Cover (%) . | . . . . . Naked Turns . | . . . . . Heaviest Build 35 | 7 19 30 35 35 Greatest Support 35 | 25 25 25 35 35 Greatest Overweight (x) 1 | . . 1 1 . Average Overweight (x) . | . . . . . Largest Inventory Capacity 1 | 1 1 1 1 1 Average Capacity 1 | 1 1 1 1 1 Most Carried 1 | . 1 1 1 1 Average Carried . | . . . . . Final Capacity 1 | 1 1 1 1 1 Final Carried 1 | . . 1 1 . Scrap Suit Usage (%) 2 | . . . . 8 Parts Cannibalized 1 | . . . . 1 Class Distribution -------------------- 49% | Tank 12% | Gunner 11% | Derelict-Gladiator 10% | Scrapper 7% | Mutant 4% | Gladiator Dominant Class ---------------- Gunner | -10/Materials Tank | -10/Subcaves Tank | -8/Recycling Derelict-Gladiator | -8/Scraptown Resources | -11 -10 -10 -8 -8 ----------- Run | Yrd Mat Sub Rec Scr Matter Collected 1210 | 260 342 346 77 185 Remotely . | . . . . . Salvage Created 1237 | 19 545 158 279 236 Parts 72 | 3 23 13 21 12 Haulers Intercepted . | . . . . . Recyclers Shooed 4 | . 4 . . . Parts Field Recycled . | . . . . . Retrieved Matter . | . . . . . Parts Self-Destructed 17 | . . 17 . . Prevented . | . . . . . Parts Restored . | . . . . . Kills | -11 -10 -10 -8 -8 ------- Run | Yrd Mat Sub Rec Scr Combat Hostiles Destroyed 32 | . 16 8 4 4 Melee 4 | . . . . 4 Guns 20 | . 11 6 3 . Cannons 1 | . . . 1 . AOE 6 | . 4 2 . . Classes Destroyed 16 | 1 6 3 3 3 Worker 1 | . 1 . . . Builder 1 | . . . 1 . Tunneler 1 | 1 . . . . Recycler 5 | . 2 . 3 . Operator 1 | . 1 . . . Turret 2 | . . 2 . . Watcher 2 | . 2 . . . Swarmer 10 | . 6 4 . . Grunt 12 | . 10 2 . . Sentry 3 | . . . 3 . Demolisher 1 | . . . 1 . Artisan 1 | . . 1 . . Subdweller 2 | . . 2 . . Bolteater 1 | . . . . 1 Ranger 2 | . . . . 2 Guru 1 | . . . . 1 Best Kill Streak 6 | 1 5 6 3 3 Combat Bots Only 4 | . 4 4 1 3 Max Kills in Single Turn 3 | 1 3 2 1 1 Gunslinging 1 | . . 1 . . Exploded 2 | . 2 1 . . Melee 1 | . . . . 1 Uniques/NPCs Destroyed . | . . . . . Combat | -11 -10 -10 -8 -8 -------- Run | Yrd Mat Sub Rec Scr Hostile Shots Fired 218 | . 54 51 10 103 Missed 58 | . 15 15 3 25 Hits 160 | . 39 36 7 78 Melee 1 | . . . . 1 Projectile 159 | . 39 36 7 77 AOE 2 | . . 2 . . Critical Strikes 3 | . 2 . . 1 Damage Taken 2104 | . 477 561 106 960 Core 1627 | . 348 404 82 793 Absorbed by Shields . | . . . . . Redirected to Core 1170 | . 258 317 34 561 Ignored by Resistances 5 | . . 5 . . Regen/Repaired (Parts) 2 | . . . . 2 Core Remaining (%) 100 | 100 . . . . Volleys Fired 118 | 1 71 37 9 . Largest 4 | 2 3 4 4 . Hottest 198 | 90 150 198 198 . Shots Fired 258 | 2 145 78 33 . Gun 229 | 2 141 61 25 . Cannon 13 | . . 5 8 . Launcher 16 | . 4 12 . . Special . | . . . . . Kinetic 56 | . . 39 17 . Thermal 185 | 1 141 27 16 . Explosive 16 | . 4 12 . . Electromagnetic 1 | 1 . . . . Robot Hit Streak 9 | 1 8 8 9 . Robot Miss Streak 5 | . 5 5 2 . Penetration Max . | . . . . . Secondary Targets 4 | . 3 1 . . Max Gunslinging Chain 1 | . 1 1 . . Shots Hit Robots 153 | 1 82 35 27 8 Core Hits 72 | 1 38 19 11 3 Critical Kills . | . . . . . Critical Parts Destroyed . | . . . . . Critical Strikes 6 | . 5 1 . . Burn 6 | . 5 1 . . Melee Attacks 28 | . . . 12 16 Impact . | . . . . . Slashing 28 | . . . 12 16 Piercing . | . . . . . Sneak Attacks 4 | . . . 4 . Combat Hostiles . | . . . . . Follow-up Attacks . | . . . . . Damage Inflicted 3232 | 13 1302 828 778 311 Guns 2009 | 13 1076 546 374 . Cannons 196 | . . 83 113 . Explosions 425 | . 226 199 . . Melee 602 | . . . 291 311 Ramming . | . . . . . Kinetic 655 | . . 384 271 . Thermal 1550 | 13 1076 245 216 . Explosive 425 | . 226 199 . . Electromagnetic . | . . . . . Impact . | . . . . . Slashing 602 | . . . 291 311 Piercing . | . . . . . Highest Corruption 1 | . . . . 1 Average Corruption 1 | . . . . 1 Corruption Purged . | . . . . . Corruption Blocked . | . . . . . Effects 1 | . . . . 1 Data Loss (major) 1 | . . . . 1 Overload Shots . | . . . . . Overflow Damage 67 | . . . 31 36 Projectiles . | . . . . . Explosions . | . . . . . Melee 67 | . . . 31 36 Knockbacks . | . . . . . Impact . | . . . . . Kinetic . | . . . . . Secondary . | . . . . . Self-Inflicted Damage 37 | . 19 18 . . Shots 3 | . 1 2 . . Rammed . | . . . . . Targets Rammed . | . . . . . Kicked . | . . . . . Crushed . | . . . . . Highest Temperature 488 | 30 488 60 343 11 Average Temperature 143 | 17 164 31 115 11 Received Heat Transfer 676 | . 264 54 45 313 Effects 7 | . 7 . . . Shutdowns 2 | . 2 . . . Energy Bleed 1 | . 1 . . . Interference 1 | . 1 . . . Matter Decay 3 | . 3 . . . Siege Activations . | . . . . . Martial Activations . | . . . . . Shielding Activations . | . . . . . Robots Disrupted . | . . . . . Combat Hostiles . | . . . . . Robots Corrupted . | . . . . . Combat Hostiles . | . . . . . Parts Fried . | . . . . . Impact Corruptions . | . . . . . Robots Melted 1 | . 1 . . . Combat Hostiles 1 | . 1 . . . Parts Melted 10 | . 10 . . . Heat Transferred 4369 | 37 3552 507 273 . Parts Sabotaged . | . . . . . Parts Stolen . | . . . . . Parts Stripped . | . . . . . Power Chain Reactions . | . . . . . Alert | -11 -10 -10 -8 -8 ------- Run | Yrd Mat Sub Rec Scr Maximum Alert Level . | . . . . . Low Security (%) 100 | 100 100 . 100 . Level 1 . | . . . . . Level 2 . | . . . . . Level 3 . | . . . . . Level 4 . | . . . . . Level 5 . | . . . . . High Security . | . . . . . Max Security . | . . . . . Peak Influence 171 | 5 171 . 156 . Initial 47 | . . . 47 . Average 63 | . 92 . 36 . Influence Increases 1096 | 5 547 215 329 . Destroy 0b10 Robot/C 560 | . 320 160 80 . Destroy 0b10 Robot/NC 55 | 5 30 . 20 . Destroy Leader 74 | . 64 10 . . Successful Hack 37 | . 28 . 9 . Select Force Hacks 240 | . 30 . 210 . Destroy Structure 25 | . 15 . 10 . Partial Spotted 15 | . 15 . . . Lose Combat Pursuer 90 | . 45 45 . . Influence Decreases 1096 | 5 470 193 304 124 Entered New Map 213 | . . 37 52 124 Time Decay 883 | 5 470 156 252 . Squads Dispatched 2 | . 2 . . . Investigation 2 | . 2 . . . Extermination . | . . . . . Reinforcement . | . . . . . Assault . | . . . . . Garrison . | . . . . . Intercept . | . . . . . Searches Triggered . | . . . . . Construction Impeded . | . . . . . Haulers Reinforced . | . . . . . Active Scanning Responses . | . . . . . Cargo Convoy Interrupts . | . . . . . Stealth | -11 -10 -10 -8 -8 --------- Run | Yrd Mat Sub Rec Scr Distress Signals 1 | . 1 . . . Communications Jammed . | . . . . . Distress Signals . | . . . . . Times Spotted 50 | . 25 10 1 14 Peak Tracking Total 7 | . 4 3 1 7 Tactical Retreats 4 | . 2 2 . . Traps | -11 -10 -10 -8 -8 ------- Run | Yrd Mat Sub Rec Scr Traps Triggered 1 | . 1 . . . Indirectly . | . . . . . Trap Hack Attempts . | . . . . . Triggered . | . . . . . Disarmed . | . . . . . Reprogrammed . | . . . . . Reused . | . . . . . Traps Extracted . | . . . . . Installed . | . . . . . Triggered . | . . . . . Machines | -11 -10 -10 -8 -8 ---------- Run | Yrd Mat Sub Rec Scr Machines Disabled 3 | . . 2 . 1 Max in Single Turn 1 | . . 1 . 1 Machines Repaired . | . . . . . Machines Dismantled . | . . . . . Machines Sabotaged . | . . . . . Overloaded Fab Kills . | . . . . . Hacking | -11 -10 -10 -8 -8 --------- Run | Yrd Mat Sub Rec Scr Machines Accessed 27 | . 8 1 13 5 Terminals 13 | . 7 . 6 . Fabricators . | . . . . . Repair Stations . | . . . . . Recycling Units 8 | . 1 . 7 . Scanalyzers . | . . . . . Garrison Access . | . . . . . Total Hacks 73 | . 16 2 27 28 Successful 63 | . 13 2 20 28 Failed 10 | . 3 . 7 . Catastrophic . | . . . . . Database Lockouts . | . . . . . Manual 23 | . 7 . 16 . Terminals 24 | . 15 . 9 . Fabricators . | . . . . . Repair Stations . | . . . . . Recycling Units 19 | . 1 . 18 . Scanalyzers . | . . . . . Garrison Access . | . . . . . Terminal Hacks 38 | . 7 2 1 28 Record 27 | . . 1 . 26 Robot Analysis 1 | . . . 1 . Prototype ID Bank 3 | . 3 . . . Open Door 1 | . . . . 1 Locate Traps 1 | . 1 . . . Hauler Manifests 1 | . 1 . . . Registered Components 1 | . 1 . . . Registered Prototypes 1 | . 1 . . . Proto ID Catalog 2 | . . 1 . 1 Fabricator Hacks . | . . . . . Repair Station Hacks . | . . . . . Recycling Unit Hacks 7 | . . . 7 . Report Inventory 7 | . . . 7 . Scanalyzer . | . . . . . Garrison Access Hacks . | . . . . . Unauthorized Hacks 18 | . 6 . 12 . Terminals 10 | . 5 . 5 . Botnet 10 | . 5 . 5 . Fabricators . | . . . . . Repair Stations . | . . . . . Recycling Units 8 | . 1 . 7 . Tunnel 8 | . 1 . 7 . Scanalyzers . | . . . . . Garrison Access . | . . . . . Data Cores Recovered 1 | . 1 . . . Used 1 | . 1 . . . Hacking Detections 12 | . 3 . 9 . Full Trace Events . | . . . . . Feedback Events . | . . . . . Feedback Blocked . | . . . . . Robot Schematics Acquired . | . . . . . Robots Built . | . . . . . Authchips . | . . . . . Time . | . . . . . Total Robot Build Rating . | . . . . . Part Schematics Acquired . | . . . . . Parts Built . | . . . . . Authchips . | . . . . . Time . | . . . . . Total Part Build Rating . | . . . . . Part Studies Acquired . | . . . . . Parts Repaired . | . . . . . Time . | . . . . . Parts Recycled . | . . . . . Recycled Matter . | . . . . . Retrieved Matter . | . . . . . Retrieved Components . | . . . . . Parts Scanalyzed . | . . . . . Part Schematics Acquired . | . . . . . Parts Damaged . | . . . . . Bothacking | -11 -10 -10 -8 -8 ------------ Run | Yrd Mat Sub Rec Scr Used RIF Installer . | . . . . . Robots Hacked . | . . . . . Non-combat . | . . . . . Combat . | . . . . . Robot Hacks Applied . | . . . . . Relay Couplers Released . | . . . . . Fabnet Peak Effective % . | . . . . . Robots Rewired . | . . . . . Allies Hacked . | . . . . . Hacks Repelled . | . . . . . Allies | -11 -10 -10 -8 -8 -------- Run | Yrd Mat Sub Rec Scr Total Allies . | . . . . . Largest Group . | . . . . . Highest-Rated Group . | . . . . . Highest-Rated Ally . | . . . . . Total Orders . | . . . . . Ally Attacks . | . . . . . Total Damage . | . . . . . Kills . | . . . . . Allies Corrupted . | . . . . . Allies Melted 3 | . . . . 3 Intel | -11 -10 -10 -8 -8 ------- Run | Yrd Mat Sub Rec Scr Active Infowar (turns) . | . . . . . Robot Analysis Total 1 | . . . 1 . Derelict Logs Recovered 4 | . . 2 . 2 Drone Launches . | . . . . . Drone Recoveries . | . . . . . Exploration | -11 -10 -10 -8 -8 ------------- Run | Yrd Mat Sub Rec Scr Turns Passed 5309 | 58 1287 921 1248 1795 Spaces Moved 5509 | 54 1266 926 1230 2033 Core 1 | 1 . . . . Treads . | . . . . . Legs . | . . . . . Wheels 5508 | 53 1266 926 1230 2033 Hover . | . . . . . Flight . | . . . . . Fastest Speed 41 | 50 80 80 80 41 Average Speed 82 | 80 80 83 93 76 Slowest Speed 100 | 100 80 95 95 80 Overloaded Moves . | . . . . . Propulsion Burnouts . | . . . . . Robots Hopped . | . . . . . Potential Cave-ins . | . . . . . Cave-ins Triggered . | . . . . . Exploration Rate (%) 69 | 3 98 59 99 88 Regions Visited 4 Branch Regions 3 Pre-discovered Areas 10 | . 1 1 7 1 Known Exits Taken . | . . . . . Unknown Exits Taken 4 | 1 1 1 1 . Scrap Searched 9 | . . 3 . 6 Spaces Dug 10 | . . . 8 2 Terrain Destroyed 82 | . 17 53 10 2 Melee 10 | . . . 8 2 Projectile 3 | . . 1 2 . AOE 69 | . 17 52 . . Terrain Rammed . | . . . . . Walls Destroyed . | . . . . . Machines Disabled . | . . . . . Actions | -11 -10 -10 -8 -8 --------- Run | Yrd Mat Sub Rec Scr Total 6062 | 63 1423 1014 1290 2272 Wait 260 | 2 42 23 14 179 Move 5505 | 53 1265 925 1229 2033 Hop . | . . . . . Pick Up 10 | . 4 3 1 2 Fast Attach 34 | 6 7 6 3 12 Attach 10 | . 3 3 . 4 Detach 4 | . . 2 . 2 Swap 4 | . . 2 2 . Drop 35 | 1 8 7 1 18 Fire 118 | 1 71 37 9 . Melee 28 | . . . 12 16 Ram . | . . . . . Kick . | . . . . . Crush . | . . . . . Escape Stasis . | . . . . . Rewire . | . . . . . Trap . | . . . . . Miscellaneous 54 | . 23 6 19 6 Route ------- -11/Scrapyard -10/Materials (discovered 5 exits: [*Mat x3] / [*Min] / *Sub) -10/Subcaves (discovered 4 exits: [*Mat x2] / *Rec / *Scr) -8/Recycling (discovered 2 exits: [*Fac] / *Scr) -8/Scraptown (discovered 2 exits: [*Fac x2]) History --------- Turn | Location | Event 1 | -11/Scrapyard | Upgraded with Propulsion slot (x1) 1 | -11/Scrapyard | Upgraded with Utility slot (x1) 1 | -11/Scrapyard | Upgraded with Weapon slot (x1) 32 | -11/Scrapyard | Discovered new exit (range 14) 59 | -11/Scrapyard | Entered Materials 115 | -10/Materials | Upgraded with Weapon slot (x1) 200 | -10/Materials | Discovered new exit (range 5) 386 | -10/Materials | Discovered new exit (range 16) 388 | -10/Materials | Discovered new exit (range 7) 417 | -10/Materials | Build established: Gunner 572 | -10/Materials | Discovered new exit (range 8) 700 | -10/Materials | Discovered new exit (range 16) 750 | -10/Materials | Reached level 2 1090 | -10/Materials | Build established: Tank 1346 | -10/Materials | Entered Subcaves 1347 | -10/Subcaves | A swath of the cavern ceiling suddenly collapsed 1347 | -10/Subcaves | Approached by a straggling Scientist 1348 | -10/Subcaves | Reached level 3 1456 | -10/Subcaves | Visited 4L-MR0's lab 1534 | -10/Subcaves | Shifting Twisted Machinery released Sub. Machine Gun 1606 | -10/Subcaves | Shifting Twisted Machinery released Battle Rifle 1628 | -10/Subcaves | Discovered new exit (range 15) 1928 | -10/Subcaves | Discovered new exit (range 5) 2031 | -10/Subcaves | Upgraded with Weapon slot (x1) 2096 | -10/Subcaves | Core integrity fell below 50% 2102 | -10/Subcaves | Discovered new exit (range 10) 2160 | -10/Subcaves | Scientist uncovered a shortcut to Scraptown 2267 | -10/Subcaves | Entered Recycling 2269 | -8/Recycling | Reached level 4 2601 | -8/Recycling | Discovered new exit (range 8) 3065 | -8/Recycling | Upgraded with Propulsion slot (x1) 3065 | -8/Recycling | Upgraded with Power slot (x1) 3065 | -8/Recycling | Upgraded with Utility slot (x1) 3246 | -8/Recycling | Reached level 5 3492 | -8/Recycling | Scanned before Scraplab entrance 3505 | -8/Recycling | Entered Scraplab 3513 | -8/Recycling | Discovered new exit (range 3) 3515 | -8/Recycling | Entered Scraptown 3592 | -8/Scraptown | Scanned Subdweller tech in exchange for log data 3594 | -8/Scraptown | Learned Research garrison access intel 3595 | -8/Scraptown | Learned Factory emergency access door positions 3757 | -8/Scraptown | Upgraded with Utility slot (x1) 3962 | -8/Scraptown | Discovered new exit (range 11) 4038 | -8/Scraptown | Build established: Derelict-Gladiator 4041 | -8/Scraptown | Visited UFD Registry 4041 | -8/Scraptown | Registered with UFD as "Gravbank" 4060 | -8/Scraptown | Visited SPCMW 4108 | -8/Scraptown | Visited A0-MCA Data Center 4112 | -8/Scraptown | Given a B+ rating by A0-MCA 4116 | -8/Scraptown | Found A0-MCA's Component Scanner 4136 | -8/Scraptown | Visited Junk Repository 4169 | -8/Scraptown | Visited Botcube Research 4262 | -8/Scraptown | Visited Science Guys 4295 | -8/Scraptown | Visited Scrap Suit Storage 4325 | -8/Scraptown | Visited Science Testing Area 4339 | -8/Scraptown | Visited Scrapoid Research Area 4355 | -8/Scraptown | Visited Derelict Rescue Squad 4369 | -8/Scraptown | Visited Sword Containment 4424 | -8/Scraptown | Found Companion Sword 4454 | -8/Scraptown | Visited Modified Component R&D 4535 | -8/Scraptown | Found Scrap Suit 4685 | -8/Scraptown | Visited Cyclists 4698 | -8/Scraptown | Entered Cyclist Reading Room 4720 | -8/Scraptown | Visited Shadow of the Wyrm 4733 | -8/Scraptown | Visited Assassins FH 4738 | -8/Scraptown | Visited Artisan Demo Area 4789 | -8/Scraptown | Visited Cave Peace 4950 | -8/Scraptown | Met Optimus 4950 | -8/Scraptown | Accepted into 0bPrime 4962 | -8/Scraptown | Build established: Scrapper 5185 | -8/Scraptown | Civil war broke out across Scraptown 5260 | -8/Scraptown | Discovered new exit (range 10) 5303 | -8/Scraptown | Lost 6 allies 5306 | -8/Scraptown | Core integrity fell below 20% 5310 | -8/Scraptown | Destroyed by DU-0JT(j) with Overtuned Pulse Rifle Last Messages --------------- 05282_ Bolt penetrates Wall. 05287_ Destroyed Lgt. Nuclear Core. 05287_ Penetrated by Bolt. 05291_ L4-L5Q(h) destroyed. 05293_ Penetrated by Bolt. 05294_ Critical hit (Burn: +50). 05294_ 62-HGG(p) destroyed. 05295_ Penetrated by Bolt. 05298_ 1H-BAM(h) suffers critical hit (Burn). 05298_ Penetrated by Bolt. 05300_ 1H-BAM(h) heat damages Mak. Targeting Computer. 05300_ Upgraded: Core Integrity (+150) 05300_ Bolt penetrates BN-ONY(h). 05300_ Penetrated by Bolt. 05301_ YW-2TW(j) suffers critical hit (Burn). 05301_ 1H-BAM(h) destroyed. 05303_ Penetrated by Bolt. 05305_ BN-ONY(h): "I'll admit this is sort of exciting." 05307_ Penetrated by Bolt. 05310_ BN-ONY(h) destroyed. Map ----- +----------------------------------------------------+ | | | | | | | | | | | | | | | | | | | ?????????????????????????????????????????????????? | | ?????????????????????????????????????????????????? | | ?????????????????????????????????????????????????? | | ?????????????????????????????????????????????????? | | ?????????????????????????????????????????????????? | | ?????????????????????????????????????????????????? | | ?????????????????????????????????????????????????? | | ?????????????????????????????????????????????????? | | ?????????????????????????????????????????????????? | | ?????????????????????????????????????????????????? | | ?????????????????????????????????????????????????? | | ?????????????????????????????????????????????????? | | ?????????????????????????????????????????????????? | | ????????????????###################???####???????? | | ???????????????#"""##"""##""|##"""#??## ##??????< | | ???????????????#"" ##""!##"" ##!! #### !#####!%[ | | ???????????????#"" [%j[@!j ! ! [!=!!%![ | | ???????????????# =%[!!j= * !!!=[%!%!=! | | ???????????????#######[############### *==###!#[=# | | ##############???????###?????????????##!%###?????? | | #""""""""""""#?###########?????########[%""####### | | #"""""""# "["#?# #????""""""""# # """" | | #" " = # #?# #????" " && "# # " " " | | #"[ #+####?# #????" "# #""" | | #" """#?# #???#"" ""# #""" | | #"= "#?# #???#" "# #""" " | | #""""" ""#?# #???#"" ""# # " "" | | #####" "#?##### #####???#" "# # "" | | #""""" X#??#### X###????#"" ""# #"" "" | | # [ ##??# #????# # #" " | | # "#??# #????# # #" | | # "#??# //! #?????? ??# # | | ######### ####??#####/###???????# #???# ## ###### | | ????##### ###########/########### ##### ## ##???# | | ????#"""" """"""""""" """"""""""" """"" "" "#??? | | ????#" "#?? | | ????#" ! "#?? | | ????#" "#? | | ????#" "## | | ????#" | | ??""" """""""""""""""""""""""""""" ""# | +----------------------------------------------------+ Best States ------------- Heat Dissipation 59 Energy Generation 15 Energy Capacity 275 Matter Stores 300 Matter Capacity 300 Sight Range 16 Robot Scan Range 12 Terrain Scan Density 10 Armor Coverage 450 Resistance: EX 20 Melee Speed Boost 20 Evasion (%) 51 Item Schematics ----------------- None Robot Schematics ------------------ None Fabricated ------------ Nothing Repaired ---------- Nothing Studied --------- None Alien Tech Used ----------------- None Achievements -------------- Link The Feds Challenges ------------ None RPGLIKE | -11 -10 -10 -8 -8 --------- Run | Yrd Mat Sub Rec Scr Levels Raised 4 | . 1 1 2 . XP Earned 10285 | 3000 2085 1850 2450 900 XP Spent 8950 | 1850 1120 2000 2100 1880 Upgrades 28 | 5 5 5 3 10 Power Slot 1 | . . . 1 . Propulsion Slot 2 | 1 . . 1 . Utility Slot 3 | 1 . . 1 1 Weapon Slot 3 | 1 1 1 . . Core Integrity 3 | . . . . 3 Heat Dissipation 4 | . 4 . . . Mass Support 1 | 1 . . . . Inventory Capacity 1 | 1 . . . . Sensor Range 6 | . . . . 6 EX Resistance % 4 | . . 4 . . Protomatter Created 515 | . 209 77 138 91 Integrity Restored 1098 | . 445 114 413 126 Core 872 | . 325 114 395 38 Parts 226 | . 120 . 18 88 Protomatter Decayed 2676 | . 49 38 . 2589 Game ------ Seed WeldingSubatomicAnalyzer Manual? 0 Play Time 01:02:50 Cumulative 207.1 hours Start 2026.08.23 @ 03:53:43 End 2026.08.23 @ 05:01:19 Sessions 1 Manual Loads 0 Difficulty Rogue Special Mode Winter2019/RPGLIKE Game No. 99 Rogue 95 Adventurer 4 Explorer 0 Win Type - Total 7 Types 4/0/2/0/0/0/0/0/1/0 Lore% 74 Gallery% 52 Achievement% 45 Wizard Run 0 Options --------- Layout 0 ASCII 0 Keyboard 0 Movement Arrows Keybinds 0 Fullscreen 2 Font 32/SmallcapsGlow Map View 88x55 Zoom Use 0% Tactical HUD 1 Map Filters NONE Filters NONE Steam 1 RUN: 82397954-93e0-40a8-93c8-343f9e96d783